bitfinex/quotes_SOLUSD_20240729
["timestamp","ask_amount","ask_price","bid_price","bid_amount"]
[1722245352908,13.03,192.57,192.52,0.34]
[1722245353426,13.03,192.57,192.51,45.0]
[1722245353927,4.1535,192.61,192.52,0.34]
[1722245354224,13.03,192.58,192.52,0.34]
[1722245354625,4.1535,192.61,192.52,0.34]
[1722245354831,13.03,192.59,192.53,13.03]
[1722245355137,13.03,192.59,192.54,45.0]
[1722245355345,13.03,192.6,192.54,45.0]
[1722245356332,4.1534,192.61,192.54,45.0]
[1722245356521,13.03,192.59,192.54,45.0]
[1722245356728,13.03,192.6,192.54,45.0]
[1722245359136,13.03,192.62,192.55,13.03]
[1722245359314,13.03,192.62,192.56,45.0]
[1722245359509,17.1832,192.62,192.56,45.0]
[1722245359708,13.03,192.6,192.56,45.0]
[1722245360910,13.03,192.58,192.56,45.0]
[1722245361105,13.03,192.58,192.54,0.34]
[1722245361315,4.1537,192.6,192.5,28.7645]
[1722245361634,13.03,192.58,192.51,58.37]
[1722245362636,13.03,192.59,192.52,13.03]
[1722245362823,13.03,192.59,192.53,45.34]
[1722245363019,4.153,192.63,192.54,6.5238]
[1722245363229,13.03,192.6,192.55,45.34]
[1722245363533,0.7938997,192.64,192.55,45.0]
[1722245363534,13.03,192.59,192.55,45.0]
[1722245363735,13.03,192.59,192.54,45.0]
[1722245364111,13.03,192.59,192.53,45.34]
[1722245364729,0.7938997,192.64,192.57,13.03]
[1722245365030,13.03,192.63,192.58,45.0]
[1722245365232,0.7938997,192.64,192.58,45.0]
[1722245365233,13.03,192.62,192.58,45.0]
[1722245365632,13.03,192.62,192.51,1.0383127]
[1722245365633,13.03,192.59,192.5,15.7454]
[1722245365840,13.03,192.6,192.5,15.7454]
[1722245365841,13.03,192.55,192.5,15.7454]
[1722245366331,21.8211,192.61,192.5,15.7454]
[1722245366522,4.1539,192.59,192.5,28.7754]
[1722245366719,13.03,192.57,192.5,28.7754]
[1722245367117,25.9747,192.61,192.5,28.7754]
[1722245367313,13.03,192.58,192.51,58.37]
[1722245368353,13.03,192.57,192.51,45.34]
[1722245369146,13.03,192.57,192.51,45.0]
[1722245369340,13.03,192.58,192.51,45.0]
[1722245369631,13.03,192.57,192.51,45.0]
[1722245369831,13.03,192.56,192.51,45.0]
[1722245370034,13.03,192.52,192.45,15.398]
[1722245370212,13.03,192.47,192.41,15.398]
[1722245370617,13.03,192.46,192.41,15.398]
[1722245370823,13.03,192.43,192.38,6.1987]
[1722245371225,52.12,192.5,192.38,6.1987]
[1722245371425,13.03,192.44,192.38,6.1987]
[1722245371623,52.12,192.5,192.38,19.2287]
[1722245371834,52.12,192.5,192.39,1.03923439]
[1722245371835,13.03,192.45,192.39,1.03923439]
[1722245372415,13.03,192.45,192.4,1.03923516]
[1722245372620,13.03,192.46,192.4,1.03923516]
[1722245372822,20.0,192.49,192.4,14.06923516]
[1722245373030,13.03,192.47,192.4,14.06923516]
[1722245373233,13.03,192.46,192.4,1.03923516]
[1722245373439,20.0,192.52,192.4,59.06923516]
[1722245373649,13.03,192.48,192.41,13.03]
[1722245373810,4.1556,192.51,192.4,46.03923516]
[1722245373811,13.03,192.47,192.42,45.0]
[1722245374231,13.03,192.48,192.41,58.03]
[1722245374429,13.03,192.48,192.42,0.34]
[1722245374614,13.03,192.47,192.42,0.34]
[1722245374818,13.03,192.47,192.41,45.0]
[1722245375718,13.03,192.47,192.42,0.34]
[1722245376325,13.03,192.48,192.42,0.34]
[1722245376733,13.03,192.47,192.42,0.34]
[1722245377626,13.03,192.48,192.42,0.34]
[1722245380147,13.03,192.44,192.38,6.1987]
[1722245380718,4.1564,192.47,192.38,6.1987]
[1722245380953,13.03,192.44,192.38,6.1987]
[1722245381123,4.1562,192.49,192.39,13.03]
[1722245381450,13.03,192.46,192.39,13.03]
[1722245381832,16.3783,192.53,192.41,13.03]
[1722245382142,16.3783,192.53,192.43,13.03]
[1722245382143,13.03,192.49,192.43,13.03]
[1722245382339,13.03,192.49,192.44,45.34]
[1722245382546,13.03,192.48,192.44,45.34]
[1722245383144,13.03,192.48,192.44,45.0]
[1722245383330,13.03,192.47,192.44,45.0]
[1722245383726,13.03,192.47,192.39,13.03]
[1722245383934,13.03,192.46,192.39,13.03]
[1722245384131,13.03,192.45,192.38,6.1987]
[1722245384339,13.03,192.45,192.38,19.2287]
[1722245384552,4.1563,192.48,192.39,13.03]
[1722245384854,13.03,192.46,192.4,1.03921501]
[1722245385347,13.03,192.46,192.4,46.03921501]
[1722245385741,13.03,192.46,192.39,58.03]
[1722245385954,13.03,192.47,192.41,45.0]
[1722245386252,13.03,192.47,192.39,58.03]
[1722245386449,13.03,192.46,192.39,58.03]
[1722245386633,13.03,192.46,192.4,0.34]
[1722245386834,13.03,192.46,192.39,58.03]
[1722245387047,13.03,192.45,192.39,45.0]
[1722245387228,13.03,192.44,192.39,45.0]
[1722245387436,13.03,192.44,192.39,46.03929303]
[1722245387650,13.03,192.44,192.39,45.0]
[1722245389058,13.03,192.43,192.39,45.0]
[1722245389629,13.03,192.42,192.39,45.0]
[1722245389831,13.03,192.42,192.36,15.398]
[1722245390035,20.0,192.52,192.36,15.398]
[1722245390036,10.3874,192.55,192.36,15.398]
[1722245390246,13.03,192.48,192.42,13.03]
[1722245391037,13.03,192.46,192.39,6.4852]
[1722245391237,13.03,192.46,192.4,45.34]
[1722245391455,13.03,192.48,192.41,13.03]
[1722245391633,13.03,192.48,192.42,45.34]
[1722245394651,13.03,192.49,192.42,58.37]
[1722245396550,13.03,192.49,192.43,16.0503]
[1722245396859,4.1554,192.52,192.43,16.0503]
[1722245396860,13.03,192.5,192.44,45.0]
[1722245398669,13.03,192.5,192.45,1.03903179]
[1722245398959,13.03,192.5,192.44,45.0]
[1722245399161,4.1554,192.52,192.45,1.03903161]
[1722245399365,13.03,192.5,192.44,45.0]
[1722245399564,13.03,192.5,192.44,46.03897103]
[1722245400068,4.1552,192.53,192.44,59.06897103]
[1722245400245,13.03,192.52,192.45,13.03]
[1722245400447,13.03,192.52,192.46,45.0]
[1722245401082,13.03,192.51,192.46,45.0]
[1722245401245,6.5593,192.57,192.46,45.0]
[1722245401246,6.5593,192.57,192.46,14.06889296]
[1722245401444,13.03,192.54,192.47,45.0]
[1722245401654,13.03,192.53,192.48,1.03886923]
[1722245401854,4.1547,192.55,192.47,45.0]
[1722245402056,13.03,192.53,192.47,45.0]
[1722245402252,13.03,192.54,192.48,1.03887]
[1722245402458,15.4882,192.58,192.46,13.03]
[1722245402459,13.03,192.53,192.46,13.03]
[1722245402656,15.4882,192.58,192.44,0.34]
[1722245402869,20.0,192.57,192.44,58.37]
[1722245403072,13.03,192.51,192.44,58.37]
[1722245403251,4.1554,192.52,192.44,59.06902732]
[1722245403252,13.03,192.5,192.44,59.06902732]
[1722245403454,13.03,192.5,192.44,14.06902732]
[1722245403869,13.03,192.5,192.44,13.03]
[1722245404251,13.03,192.51,192.44,13.03]
[1722245404860,13.03,192.51,192.45,45.0]
[1722245405060,13.03,192.5,192.45,45.0]
[1722245405379,13.03,192.49,192.44,45.0]
[1722245405572,24.1545,192.57,192.45,13.03]
[1722245405751,13.03,192.52,192.46,45.0]
[1722245408779,13.03,192.53,192.46,58.03]
[1722245411188,13.03,192.52,192.46,45.0]
[1722245412078,13.03,192.49,192.43,16.2203]
[1722245413873,13.03,192.49,192.44,45.0]
[1722245414392,13.03,192.51,192.44,45.0]
[1722245416181,4.1555,192.52,192.44,45.0]
[1722245416368,13.03,192.5,192.44,45.0]
[1722245418268,13.03,192.51,192.44,58.03]
[1722245418482,13.03,192.5,192.44,45.0]
[1722245422288,35.8272377,192.57,192.44,58.03]
[1722245422289,13.03,192.52,192.44,58.03]
[1722245423290,13.03,192.52,192.45,13.03]
[1722245423479,13.03,192.52,192.46,45.0]
[1722245423881,13.03,192.52,192.45,0.17]
[1722245424184,13.03,192.52,192.45,13.37]
[1722245424382,13.03,192.52,192.46,45.0]
[1722245427383,13.03,192.52,192.45,13.03]
[1722245428401,13.03,192.51,192.43,16.0503]
[1722245428575,13.03,192.51,192.44,58.2]
[1722245429081,13.03,192.52,192.45,13.03]
[1722245429273,13.03,192.52,192.46,45.0]
[1722245432175,13.03,192.51,192.46,45.0]
[1722245432375,13.03,192.51,192.45,45.0]
[1722245435596,4.1547,192.55,192.45,45.0]
[1722245435788,13.03,192.53,192.45,58.03]
[1722245437791,13.03,192.54,192.46,13.03]
[1722245437985,13.03,192.54,192.47,45.0]
[1722245438202,13.03,192.53,192.47,45.0]
[1722245443306,13.03,192.54,192.47,45.0]
[1722245443691,13.03,192.55,192.47,58.03]
[1722245444389,4.1538,192.6,192.5,13.03]
[1722245444590,21.4778,192.62,192.51,58.03]
[1722245444591,13.03,192.58,192.51,58.03]
[1722245444806,13.03,192.57,192.51,45.0]
[1722245445007,13.03,192.55,192.51,45.0]
[1722245445212,13.03,192.55,192.5,45.17]
[1722245446291,13.03,192.55,192.5,45.0]
[1722245447089,13.03,192.54,192.49,16.6545]
[1722245447293,4.1544,192.57,192.49,16.6545]
[1722245447501,4.1541,192.58,192.5,45.0]
[1722245447705,13.03,192.54,192.5,45.0]
[1722245448720,13.03,192.55,192.5,45.0]
[1722245448935,13.03,192.56,192.5,45.0]
[1722245449409,13.03,192.57,192.5,58.03]
[1722245450319,13.03,192.56,192.5,45.0]
[1722245457595,13.03,192.56,192.51,1.03863794]
[1722245457809,13.03,192.57,192.51,1.03863794]
[1722245458121,13.03,192.54,192.5,45.0]
[1722245458431,13.03,192.55,192.5,45.0]
[1722245459611,19.5357,192.62,192.5,45.0]
[1722245459808,13.03,192.56,192.51,0.34]
[1722245460515,13.03,192.56,192.5,45.0]
[1722245462929,13.03,192.56,192.51,0.34]
[1722245463232,4.1534,192.61,192.51,0.34]
[1722245463443,5.4330918,192.63,192.51,0.34]
[1722245463444,13.03,192.57,192.51,0.34]
[1722245463908,13.03,192.55,192.51,0.34]
[1722245470975,13.03,192.55,192.5,45.0]
[1722245471861,56.2737,192.6,192.5,45.0]
[1722245472062,13.03,192.55,192.5,45.0]
[1722245474465,13.03,192.53,192.5,45.0]
[1722245474669,13.03,192.51,192.46,6.2069]
[1722245474868,13.03,192.49,192.46,6.2069]
[1722245475842,13.03,192.5,192.46,6.2069]
[1722245476047,13.03,192.51,192.46,6.2069]
[1722245476241,13.03,192.51,192.47,0.34]
[1722245476963,4.1543,192.57,192.47,45.34]
[1722245477266,13.03,192.51,192.47,45.34]
[1722245477465,4.1543,192.57,192.47,45.34]
[1722245477774,13.03,192.52,192.47,45.34]
[1722245478085,24.1539,192.59,192.47,58.37]
[1722245478250,13.03,192.54,192.47,58.37]
[1722245478655,56.2737,192.6,192.48,28.241]
[1722245478963,13.03,192.55,192.49,45.34]
[1722245479173,13.03,192.54,192.49,45.34]
[1722245479874,13.03,192.53,192.49,45.34]
[1722245480081,13.03,192.52,192.5,1.03874318]
[1722245481168,13.03,192.52,192.49,1.03884036]
[1722245481465,13.03,192.52,192.48,15.211]
[1722245481662,13.03,192.52,192.49,45.0]
[1722245481975,13.03,192.51,192.49,45.0]
[1722245482182,13.03,192.51,192.48,15.211]
[1722245482562,13.03,192.5,192.48,15.211]
[1722245483454,13.03,192.49,192.43,15.9043]
[1722245483678,13.03,192.49,192.44,45.34]
[1722245486980,13.03,192.49,192.43,15.9043]
[1722245487178,13.03,192.47,192.43,15.9043]
[1722245487771,13.03,192.46,192.43,15.9043]
[1722245488082,13.03,192.46,192.38,30.19714842]
[1722245488293,13.03,192.46,192.38,28.0898]
[1722245488871,13.03,192.46,192.39,45.34]
[1722245489496,13.03,192.46,192.39,0.34]
[1722245489790,4.1558,192.5,192.39,0.34]
[1722245489791,13.03,192.45,192.39,0.34]
[1722245490280,13.03,192.46,192.39,0.34]
[1722245490476,13.03,192.46,192.39,13.37]
[1722245490678,13.03,192.46,192.4,46.03917894]
[1722245491084,13.03,192.46,192.4,45.0]
[1722245492571,13.03,192.46,192.41,1.03918098]
[1722245493108,13.03,192.46,192.4,45.0]
[1722245493424,13.03,192.47,192.39,58.37]
[1722245493699,13.03,192.48,192.42,13.03]
[1722245493870,13.03,192.49,192.43,46.03913125]
[1722245494291,4.1553,192.53,192.43,58.03]
[1722245494590,13.03,192.5,192.44,0.34]
[1722245494758,13.03,192.49,192.44,0.34]
[1722245495499,22.1845,192.55,192.44,16.2283]
[1722245495661,13.03,192.51,192.45,45.0]
[1722245496014,13.03,192.5,192.45,45.0]
[1722245497807,13.03,192.46,192.44,15.8883]
[1722245497964,13.03,192.47,192.44,15.8883]
[1722245498271,13.03,192.49,192.45,1.03913405]
[1722245498589,13.03,192.49,192.45,1.03903381]
[1722245498797,13.03,192.49,192.46,1.03903381]
[1722245499766,13.03,192.49,192.45,1.03905759]
[1722245499969,13.03,192.49,192.46,1.03905827]
[1722245500271,4.1555,192.52,192.46,1.03905827]
[1722245500483,13.03,192.5,192.46,1.03905827]
[1722245500797,13.03,192.49,192.44,15.8883]
[1722245501302,13.03,192.48,192.45,1.03907038]
[1722245501595,13.03,192.48,192.44,15.8883]
[1722245502300,13.03,192.49,192.44,15.8883]
[1722245502503,13.03,192.49,192.45,1.03907101]
[1722245502703,13.03,192.49,192.46,1.03906965]
[1722245503603,4.1554,192.52,192.44,15.8883]
[1722245503914,13.03,192.49,192.45,45.0]
[1722245504502,4.1554,192.52,192.45,45.0]
[1722245504721,20.0,192.54,192.45,45.0]
[1722245504919,13.03,192.51,192.45,45.0]
[1722245506497,13.03,192.54,192.47,13.03]
[1722245506801,13.03,192.54,192.48,46.03879821]
[1722245506987,13.03,192.54,192.49,1.03882766]
[1722245507303,4.1548,192.55,192.49,1.03882766]
[1722245507483,4.1545,192.56,192.49,1.03882766]
[1722245507686,13.03,192.54,192.49,1.03882766]
[1722245507989,13.03,192.53,192.48,45.0]
[1722245508185,13.03,192.53,192.47,45.0]
[1722245508403,13.03,192.53,192.48,0.17]
[1722245508584,13.03,192.53,192.48,1.20879693]
[1722245509003,13.03,192.53,192.48,0.17]
[1722245509809,13.03,192.53,192.48,1.20879705]
[1722245510884,13.03,192.53,192.44,15.8883]
[1722245510885,13.03,192.5,192.44,15.8883]
[1722245511098,13.03,192.5,192.45,1.03895646]
[1722245511303,13.03,192.49,192.44,15.8883]
[1722245512211,4.1554,192.52,192.44,15.8883]
[1722245512385,13.03,192.49,192.45,0.34]
[1722245512810,13.03,192.49,192.45,45.34]
[1722245513297,13.03,192.5,192.46,1.03898413]
[1722245513523,4.155,192.54,192.46,1.03898413]
[1722245513524,13.03,192.51,192.46,1.03898413]
[1722245513890,13.03,192.51,192.45,45.34]
[1722245514384,4.155,192.54,192.45,45.34]
[1722245514607,13.03,192.51,192.45,45.34]
[1722245519511,13.03,192.5,192.45,45.34]
[1722245520198,13.03,192.49,192.45,45.34]
[1722245520905,13.03,192.48,192.44,15.8883]
[1722245521312,13.03,192.48,192.45,1.03912158]
[1722245521809,13.03,192.48,192.44,15.8883]
[1722245521810,20.0,192.58,192.44,28.9183]
[1722245522032,13.03,192.53,192.45,13.03]
[1722245522694,13.03,192.53,192.46,45.34]
[1722245523417,4.154,192.59,192.48,13.03]
[1722245523710,13.03,192.56,192.49,59.40870114]
[1722245524496,13.03,192.56,192.49,58.37]
[1722245526018,13.03,192.55,192.49,45.34]
[1722245526385,13.03,192.54,192.49,45.34]
[1722245526604,4.1538,192.6,192.5,1.03870146]
[1722245526805,4.1538,192.6,192.5,45.0]
[1722245526986,13.03,192.56,192.51,0.34]
[1722245528204,13.03,192.57,192.51,0.34]
[1722245535222,13.03,192.56,192.51,0.34]
[1722245536227,13.03,192.54,192.47,35.22]
[1722245536395,13.03,192.53,192.47,22.19]
[1722245536593,13.03,192.51,192.47,22.19]
[1722245537302,4.1547,192.55,192.47,22.19]
[1722245537504,13.03,192.54,192.47,35.22]
[1722245537915,13.03,192.55,192.48,13.03]
[1722245538095,13.03,192.54,192.49,45.34]
[1722245538301,13.03,192.54,192.5,45.0]
[1722245538516,13.03,192.54,192.49,0.34]
[1722245539736,13.03,192.55,192.49,0.34]
[1722245541733,13.03,192.58,192.51,13.03]
[1722245541917,13.03,192.58,192.52,45.34]
[1722245545436,13.03,192.57,192.52,45.34]
[1722245545648,13.03,192.57,192.52,0.34]
[1722245546839,13.03,192.57,192.51,45.0]
[1722245546840,13.03,192.56,192.51,45.0]
[1722245547242,4.1537,192.6,192.51,45.0]
[1722245547543,13.03,192.56,192.51,45.0]
[1722245549838,13.03,192.57,192.51,45.0]
[1722245550042,4.1537,192.6,192.51,45.0]
[1722245550248,13.03,192.56,192.51,45.0]
[1722245550921,13.03,192.55,192.51,45.0]
[1722245551117,13.03,192.54,192.5,15.2983]
[1722245551325,52.12,192.6,192.5,15.2983]
[1722245551326,13.03,192.53,192.5,15.2983]
[1722245551731,13.03,192.52,192.5,15.2983]
[1722245552239,13.03,192.53,192.5,15.2983]
[1722245552738,13.03,192.53,192.47,6.4766]
[1722245552914,13.03,192.53,192.48,45.0]
[1722245555230,4.1546,192.56,192.48,45.0]
[1722245555231,13.03,192.51,192.48,45.0]
[1722245555627,13.03,192.52,192.48,45.0]
[1722245556136,13.03,192.5,192.46,15.1042]
[1722245556324,22.521,192.58,192.46,15.1042]
[1722245556325,13.03,192.49,192.46,15.1042]
[1722245557327,13.03,192.48,192.46,15.1042]
[1722245557537,13.03,192.48,192.42,6.479]
[1722245558319,13.03,192.47,192.42,6.479]
[1722245558950,13.03,192.47,192.43,45.0]
[1722245562323,13.03,192.48,192.43,45.0]
[1722245568651,13.03,192.48,192.44,1.03915977]
[1722245568828,13.03,192.49,192.44,1.03915977]
[1722245569144,13.03,192.5,192.44,1.03915977]
[1722245569353,13.03,192.5,192.43,58.03]
[1722245569528,13.03,192.51,192.44,13.37]
[1722245569733,13.03,192.51,192.45,45.0]
[1722245570326,4.155,192.54,192.45,45.0]
[1722245570327,13.03,192.5,192.45,45.0]
[1722245570527,13.03,192.5,192.44,45.34]
[1722245571335,13.03,192.51,192.44,58.37]
[1722245574648,13.03,192.51,192.44,45.34]
[1722245574948,4.1552,192.53,192.44,45.34]
[1722245575151,13.03,192.5,192.44,45.34]
[1722245575337,13.03,192.5,192.45,45.0]
[1722245575529,13.03,192.5,192.44,0.34]
[1722245576949,13.03,192.49,192.43,45.0]
[1722245577439,13.03,192.48,192.43,45.0]
[1722245577643,13.03,192.48,192.44,1.03915709]
[1722245578152,4.1558,192.5,192.44,1.03917395]
[1722245578153,13.03,192.49,192.44,1.03917395]
[1722245579075,13.03,192.49,192.43,45.0]
[1722245579233,13.03,192.48,192.43,45.0]
[1722245579535,13.03,192.48,192.44,1.0391586]
[1722245579729,13.03,192.47,192.43,45.0]
[1722245579928,13.03,192.47,192.42,6.479]
[1722245580744,13.03,192.47,192.41,16.3757]
[1722245581077,13.03,192.45,192.41,16.3757]
[1722245581441,4.1564,192.47,192.41,16.3757]
[1722245581442,13.03,192.47,192.41,16.3757]
[1722245581751,13.03,192.47,192.42,1.03920436]
[1722245581952,13.03,192.47,192.41,16.3757]
[1722245582455,13.03,192.47,192.42,45.0]
[1722245582955,4.1558,192.5,192.42,45.0]
[1722245583142,13.03,192.47,192.42,45.0]
[1722245583746,4.1558,192.5,192.42,45.0]
[1722245583951,13.03,192.47,192.42,45.0]
[1722245584134,4.1558,192.5,192.42,45.0]
[1722245584334,13.03,192.47,192.42,45.0]
[1722245587247,13.03,192.46,192.42,45.0]
[1722245588152,4.1558,192.51,192.42,45.0]
[1722245588358,13.03,192.47,192.42,45.0]
[1722245588555,4.1558,192.51,192.42,45.0]
[1722245588760,13.03,192.47,192.42,45.0]
[1722245594545,13.03,192.46,192.42,45.0]
[1722245595469,13.03,192.46,192.41,16.3757]
[1722245596050,13.03,192.47,192.41,16.3757]
[1722245597647,13.03,192.46,192.41,16.3757]
[1722245600470,13.03,192.45,192.41,16.3757]
[1722245602066,13.03,192.42,192.36,30.78380819]
[1722245602267,52.12,192.5,192.36,22.9802]
[1722245602268,13.03,192.41,192.36,22.9802]
[1722245603659,13.03,192.4,192.36,22.9802]
[1722245603863,13.03,192.39,192.36,16.6338]
[1722245604165,13.03,192.38,192.32,15.2055]
[1722245604748,13.03,192.37,192.32,15.2055]
[1722245604948,13.03,192.36,192.32,15.2055]
[1722245607173,4.1575,192.43,192.32,15.2055]
[1722245607353,13.03,192.37,192.32,15.2055]
[1722245607555,4.1575,192.43,192.32,15.2055]
[1722245607950,13.03,192.38,192.32,15.2055]
[1722245609284,13.03,192.4,192.33,58.37]
[1722245609489,13.03,192.41,192.34,14.06958461]
[1722245609653,13.03,192.41,192.35,45.0]
[1722245609856,13.03,192.41,192.36,1.03958476]
[1722245610882,13.03,192.41,192.35,45.0]
[1722245611101,13.03,192.4,192.34,45.0]
[1722245612364,4.1575,192.42,192.34,45.0]
[1722245612563,13.03,192.4,192.34,45.0]
[1722245618892,20.0,192.44,192.32,28.2355]
[1722245618893,13.03,192.39,192.32,28.2355]
[1722245619105,13.03,192.39,192.33,45.0]
[1722245624392,13.03,192.38,192.32,15.2055]
[1722245627185,13.03,192.39,192.33,1.03978118]
[1722245627697,13.03,192.39,192.33,46.03978118]
[1722245628996,13.03,192.4,192.33,59.06978118]
[1722245629201,13.03,192.4,192.33,58.03]
[1722245629383,13.03,192.41,192.34,13.03]
[1722245629702,13.03,192.41,192.35,45.0]
[1722245629898,4.1573,192.43,192.35,45.0]
[1722245630281,13.03,192.41,192.35,45.0]
[1722245631276,13.03,192.4,192.35,45.0]
[1722245631499,13.03,192.4,192.34,45.0]
[1722245632413,4.1575,192.42,192.34,45.0]
[1722245632584,13.03,192.4,192.34,45.0]
[1722245632785,13.03,192.39,192.34,45.0]
[1722245632997,13.03,192.39,192.33,45.0]
[1722245635489,13.03,192.4,192.33,45.0]
[1722245635800,13.03,192.38,192.33,45.0]
[1722245636379,13.03,192.37,192.32,15.2055]
[1722245642313,4.1578,192.41,192.32,15.2055]
[1722245642478,13.03,192.38,192.32,15.2055]
[1722245645400,13.03,192.37,192.32,15.2055]
[1722245646408,35.64,192.44,192.32,15.2055]
[1722245646409,13.03,192.36,192.32,15.2055]
[1722245646611,13.03,192.36,192.28,24.01412816]
[1722245646796,13.03,192.36,192.29,58.03]
[1722245646995,13.03,192.34,192.29,45.0]
[1722245647605,4.1584,192.38,192.29,45.0]
[1722245647927,13.03,192.35,192.3,1.03991424]
[1722245648090,13.03,192.35,192.29,45.0]
[1722245648302,13.03,192.34,192.29,45.0]
[1722245648618,4.1584,192.38,192.29,45.0]
[1722245648910,13.03,192.34,192.29,45.0]
[1722245649286,13.03,192.35,192.3,1.0399155]
[1722245649687,13.03,192.35,192.29,45.0]
[1722245650610,13.03,192.34,192.29,45.0]
[1722245650795,13.03,192.34,192.28,16.1981]
[1722245651791,4.1586,192.37,192.28,16.1981]
[1722245652205,13.03,192.34,192.28,16.1981]
[1722245652730,13.03,192.33,192.28,16.1981]
[1722245657631,13.03,192.33,192.24,7.81894752]
[1722245657632,13.03,192.31,192.24,7.81894752]
[1722245657930,13.03,192.3,192.25,45.0]
[1722245658132,13.03,192.3,192.24,45.0]
[1722245658325,13.03,192.3,192.23,29.6045]
[1722245658636,13.03,192.3,192.23,29.2645]
[1722245659510,13.03,192.29,192.23,16.2345]
[1722245661145,13.03,192.28,192.23,16.2345]
[1722245662133,13.03,192.29,192.23,17.27484789]
[1722245662341,13.03,192.29,192.23,16.2345]
[1722245662638,13.03,192.29,192.08,35.9842]
[1722245662639,13.03,192.27,192.2,13.03]
[1722245663231,13.03,192.27,192.21,1.04042485]
[1722245663428,13.03,192.27,192.2,13.03]
[1722245666020,13.03,192.26,192.19,13.03]
[1722245666219,13.03,192.26,192.2,45.0]
[1722245666721,13.03,192.26,192.2,46.04043548]
[1722245668037,4.1603,192.3,192.21,1.04043529]
[1722245668237,13.03,192.27,192.21,1.04043529]
[1722245668820,4.1603,192.3,192.21,1.04043529]
[1722245669020,13.03,192.27,192.21,1.04043529]
[1722245669624,13.03,192.29,192.22,14.07042354]
[1722245669833,13.03,192.29,192.22,13.03]
[1722245670144,20.0,192.32,192.22,13.03]
[1722245670317,13.03,192.3,192.23,13.03]
[1722245671167,13.03,192.3,192.24,1.04023301]
[1722245671521,13.03,192.3,192.23,13.03]
[1722245671757,24.1597,192.32,192.23,13.03]
[1722245672042,13.03,192.3,192.23,13.03]
[1722245673448,17.1901,192.3,192.23,13.03]
[1722245674846,17.1904,192.29,192.2,45.0]
[1722245675055,13.03,192.28,192.21,13.37]
[1722245675255,13.03,192.28,192.22,45.0]